{"text_format":"1","workbook":"xlsx","n_sheets":1,"sheets":["Follow-Up Schedule"],"not_rendered":{"charts":0,"images":0,"macros":1,"external_links":0,"defined_names":7,"comments":0,"pivot_tables":0},"unopened":[],"bounds":{"document_bytes":16777216,"sheet_cells":100000,"rows_first":2000,"rows_last":500,"rows_between":2000,"halvings":0,"cell_chars":16384,"cell_head_chars":4096},"cells_cut":0,"cells_raw":0,"read":"whole","date_system":"1900"}

{"sheet":"Follow-Up Schedule","index":0,"n_rows":101,"n_cols":5,"rows_kept":101,"cut":false,"hidden":false,"merged":[[0,2,0,4]]}
[null,null,"Instructions\nStep 1. check 'Specialist',  'Centre Name' and 'Centre Address' are correct. Amend as needed \nStep 2. enter in 'Patient Name', ' Date of Surgery' \nStep 3. select from drop down menu 'Type of Testicular Cancer and Adjuvant chemotherapy after surgery'\nStep 4. to perform the filter  click 'Display Schedule' button\nStep 5. to print the selected data click 'Print Schedule' button\nStep 6. to clear the search click 'Reset' button"]
[null,null,"Specialist (full name)","Centre Name (hospital)","Centre Address"]
[null,"Change details as needed >>> _","Dr Test","testing centre","test centre address"]
[]
[null,null,"Patient Name","Date of Surgery\n(DD/MM/YYYY)","Type and Stage of Testicular Cancer, and Treatment Administered"]
[]
["Column A & B is Reference Data - DO NOT EDIT"]
[null,{"$f":"B19","v":"Non-seminoma testicular cancer (no lympho-vascular invasion) \nWITHOUT Adjuvant chemotherapy after surgery"}]
[null,{"$f":"B60","v":"Non-seminoma testicular cancer  (lympho-vascular invasion)\nWITHOUT Adjuvant chemotherapy after surgery  "}]
[null,{"$f":"B36","v":"Non-seminoma testicular cancer \nWITH  Adjuvant chemotherapy after surgery"}]
[null,{"$f":"B44","v":"Seminoma testicular cancer \nWITHOUT Adjuvant chemotherapy after surgery"}]
[null,{"$f":"B52","v":"Seminoma testicular cancer \nWITH Adjuvant chemotherapy after surgery"}]
[null,{"$f":"B79","v":"Metastatic Seminoma - IGCCCG Good/Intermediate Risk FOLLOWING chemotherapy +/- surgery"},"Specialist  (full name): ",{"$f":"C3","v":"Dr Test"}]
[null,{"$f":"B89","v":"Metastatic Non-Seminoma - IGCCCG Good/Intermediate Risk FOLLOWING chemotherapy +/- surgery"},"Centre (Hospital): ",{"$f":"D3","v":"testing centre"},{"$f":"E3","v":"test centre address"}]
[null,{"$f":"B101","v":"Metastatic Non-Seminoma - IGCCCG Poor Risk"}]
[null,null,"Patient Name: ",{"$f":"C6","v":0}]
[null,null,"Date of Surgery: ",{"$f":"D6","v":"00:00:00"}]
["Months","Type and Stage of Testicular Cancer, and Treatment Administered","Date of Visit","Time after surgery","Recommended follow-up"]
[1,"Non-seminoma testicular cancer (no lympho-vascular invasion) \nWITHOUT Adjuvant chemotherapy after surgery",{"$f":"$D$6+((365/12)*A19)","v":"1900-01-30T10:00:00"},"1 month","Physical examination, Tumour Markers"]
[2,"Non-seminoma testicular cancer (no lympho-vascular invasion) \nWITHOUT Adjuvant chemotherapy after surgery",60.833333333333336,"2 months","Physical examination, Tumour Markers"]
[4,"Non-seminoma testicular cancer (no lympho-vascular invasion) \nWITHOUT Adjuvant chemotherapy after surgery","1900-04-30T16:00:00","4 months","Physical examination, Tumour Markers, CT abdomen and pelvis, \nChest x-ray\n"]
[6,"Non-seminoma testicular cancer (no lympho-vascular invasion) \nWITHOUT Adjuvant chemotherapy after surgery","1900-06-30T12:00:00","6 months","Physical examination, Tumour Markers, Testosterone Level"]
[8,"Non-seminoma testicular cancer (no lympho-vascular invasion) \nWITHOUT Adjuvant chemotherapy after surgery","1900-08-30T08:00:00","8 months","Physical examination, Tumour Markers, CT abdomen and pelvis, \nChest x-ray\n"]
[10,"Non-seminoma testicular cancer (no lympho-vascular invasion) \nWITHOUT Adjuvant chemotherapy after surgery","1900-10-30T04:00:00","10 months","Physical examination, Tumour Markers"]
[12,"Non-seminoma testicular cancer (no lympho-vascular invasion) \nWITHOUT Adjuvant chemotherapy after surgery","1900-12-30","1 year","Physical examination, Tumour Markers, CT abdomen and pelvis, \nChest x-ray\n"]
[15,"Non-seminoma testicular cancer (no lympho-vascular invasion) \nWITHOUT Adjuvant chemotherapy after surgery","1901-03-31T06:00:00","1 year, 3 months","Physical examination, Tumour Markers"]
[18,"Non-seminoma testicular cancer (no lympho-vascular invasion) \nWITHOUT Adjuvant chemotherapy after surgery","1901-06-30T12:00:00","1 year, 6 months","Physical examination, Tumour Markers, CT abdomen and pelvis, \nChest x-ray\n"]
[21,"Non-seminoma testicular cancer (no lympho-vascular invasion) \nWITHOUT Adjuvant chemotherapy after surgery","1901-09-29T18:00:00","1 year, 9 months","Physical examination, Tumour Markers"]
[24,"Non-seminoma testicular cancer (no lympho-vascular invasion) \nWITHOUT Adjuvant chemotherapy after surgery","1901-12-30","2 years","Physical examination, Tumour Markers, CT abdomen and pelvis, Chest x-ray, Testosterone Level"]
[30,"Non-seminoma testicular cancer (no lympho-vascular invasion) \nWITHOUT Adjuvant chemotherapy after surgery","1902-06-30T12:00:00","2 years, 6 months","Physical examination, Tumour Markers"]
[36,"Non-seminoma testicular cancer (no lympho-vascular invasion) \nWITHOUT Adjuvant chemotherapy after surgery","1902-12-30","3 years","Physical examination, Tumour Markers, CT abdomen and pelvis, Chest x-ray"]
[42,"Non-seminoma testicular cancer (no lympho-vascular invasion) \nWITHOUT Adjuvant chemotherapy after surgery","1903-06-30T12:00:00","3 years, 6 months","Physical examination, Tumour Markers"]
[48,"Non-seminoma testicular cancer (no lympho-vascular invasion) \nWITHOUT Adjuvant chemotherapy after surgery","1903-12-30","4 years","Physical examination, Tumour Markers"]
[60,"Non-seminoma testicular cancer (no lympho-vascular invasion) \nWITHOUT Adjuvant chemotherapy after surgery","1904-12-29","5 years","Physical examination, Tumour Markers, CT abdomen and pelvis, Chest x-ray, Testosterone Level"]
[null,"Non-seminoma testicular cancer (no lympho-vascular invasion) \nWITHOUT Adjuvant chemotherapy after surgery",null,"After 5 years","Some doctors recommend follow-up beyond 5 years, please discuss this with your doctor. You should have a further testosterone test 10 years after your diagnosis."]
[6,"Non-seminoma testicular cancer \nWITH  Adjuvant chemotherapy after surgery",{"$f":"$D$6+((365/12)*A36)","v":"1900-06-30T12:00:00"},"6 months","Physical examination, Tumour Markers, CT abdomen and pelvis, Chest x-ray, Testosterone Level\n"]
[12,"Non-seminoma testicular cancer \nWITH  Adjuvant chemotherapy after surgery","1900-12-30","1 year","Physical examination, Tumour Markers, CT abdomen and pelvis,  Chest x-ray\n"]
[18,"Non-seminoma testicular cancer \nWITH  Adjuvant chemotherapy after surgery","1901-06-30T12:00:00","1 year, 6 months","Physical examination, Tumour Markers, CT abdomen and pelvis,  Chest x-ray\n"]
[24,"Non-seminoma testicular cancer \nWITH  Adjuvant chemotherapy after surgery","1901-12-30","2 years","Physical examination, Tumour Markers, CT abdomen and pelvis, Chest x-ray, Testosterone Level\n"]
[36,"Non-seminoma testicular cancer \nWITH  Adjuvant chemotherapy after surgery","1902-12-30","3 years","Physical examination, Tumour Markers, CT abdomen and pelvis,  Chest x-ray\n"]
[48,"Non-seminoma testicular cancer \nWITH  Adjuvant chemotherapy after surgery","1903-12-30","4 years","Physical examination, Tumour Markers\n"]
[60,"Non-seminoma testicular cancer \nWITH  Adjuvant chemotherapy after surgery","1904-12-29","5 years","Physical examination, Tumour Markers, CT abdomen and pelvis, Chest x-ray, Testosterone Level\n"]
[null,"Non-seminoma testicular cancer \nWITH  Adjuvant chemotherapy after surgery",null,"After 5 years","Some doctors recommend follow-up beyond 5 years, please discuss this with your doctor. You should have a further testosterone test 10 years after your diagnosis."]
[6,"Seminoma testicular cancer \nWITHOUT Adjuvant chemotherapy after surgery",{"$f":"$D$6+((365/12)*A44)","v":"1900-06-30T12:00:00"},"6 months","Physical examination, Tumour Markers, CT abdomen and pelvis, Testosterone Level"]
[12,"Seminoma testicular cancer \nWITHOUT Adjuvant chemotherapy after surgery","1900-12-30","1 year","Physical examination, Tumour Markers, CT abdomen and pelvis"]
[18,"Seminoma testicular cancer \nWITHOUT Adjuvant chemotherapy after surgery","1901-06-30T12:00:00","1 year, 6 months","Physical examination, Tumour Markers, CT abdomen and pelvis"]
[24,"Seminoma testicular cancer \nWITHOUT Adjuvant chemotherapy after surgery","1901-12-30","2 years","Physical examination, Tumour Markers, CT abdomen and pelvis, Testosterone Level"]
[36,"Seminoma testicular cancer \nWITHOUT Adjuvant chemotherapy after surgery","1902-12-30","3 years","Physical examination, Tumour Markers, CT abdomen and pelvis"]
[48,"Seminoma testicular cancer \nWITHOUT Adjuvant chemotherapy after surgery","1903-12-30","4 years","Physical examination, Tumour Markers"]
[60,"Seminoma testicular cancer \nWITHOUT Adjuvant chemotherapy after surgery","1904-12-29","5 years","Physical examination, Tumour Markers, CT abdomen and pelvis, Testosterone Level"]
[null,"Seminoma testicular cancer \nWITHOUT Adjuvant chemotherapy after surgery",null,"After 5 years","Some doctors recommend follow-up beyond 5 years, please discuss this with your doctor. You should have a further testosterone test 10 years after your diagnosis."]
[6,"Seminoma testicular cancer \nWITH Adjuvant chemotherapy after surgery",{"$f":"$D$6+((365/12)*A52)","v":"1900-06-30T12:00:00"},"6 months","Physical examination, Tumour Markers, Testosterone Level"]
[12,"Seminoma testicular cancer \nWITH Adjuvant chemotherapy after surgery","1900-12-30","1 year","Physical examination, Tumour Markers, CT abdomen and pelvis"]
[18,"Seminoma testicular cancer \nWITH Adjuvant chemotherapy after surgery","1901-06-30T12:00:00","1 year, 6 months","Physical examination, Tumour Markers"]
[24,"Seminoma testicular cancer \nWITH Adjuvant chemotherapy after surgery","1901-12-30","2 years","Physical examination, Tumour Markers, CT abdomen and pelvis, Testosterone Level"]
[36,"Seminoma testicular cancer \nWITH Adjuvant chemotherapy after surgery","1902-12-30","3 years","Physical examination, Tumour Markers, CT abdomen and pelvis"]
[48,"Seminoma testicular cancer \nWITH Adjuvant chemotherapy after surgery","1903-12-30","4 years","Physical examination, Tumour Markers"]
[60,"Seminoma testicular cancer \nWITH Adjuvant chemotherapy after surgery","1904-12-29","5 years","Physical examination, Tumour Markers, CT abdomen and pelvis, Testosterone Level"]
[null,"Seminoma testicular cancer \nWITH Adjuvant chemotherapy after surgery",null,"After 5 years","Some doctors recommend follow-up beyond 5 years, please discuss this with your doctor. You should have a further testosterone test 10 years after your diagnosis."]
[1,"Non-seminoma testicular cancer  (lympho-vascular invasion)\nWITHOUT Adjuvant chemotherapy after surgery  ",{"$f":"$D$6+((365/12)*A60)","v":"1900-01-30T10:00:00"},"1 month","Physical examination, Tumour Markers"]
[2,"Non-seminoma testicular cancer  (lympho-vascular invasion)\nWITHOUT Adjuvant chemotherapy after surgery  ",{"$f":"$D$6+((365/12)*A61)","v":60.833333333333336},"2 months","Physical examination, Tumour Markers"]
[3,"Non-seminoma testicular cancer  (lympho-vascular invasion)\nWITHOUT Adjuvant chemotherapy after surgery  ","1900-03-31T06:00:00","3 months","Physical examination, Tumour Markers"]
[4,"Non-seminoma testicular cancer  (lympho-vascular invasion)\nWITHOUT Adjuvant chemotherapy after surgery  ","1900-04-30T16:00:00","4 months","Physical examination, Tumour Markers, CT abdomen and pelvis, \nChest x-ray\n"]
[5,"Non-seminoma testicular cancer  (lympho-vascular invasion)\nWITHOUT Adjuvant chemotherapy after surgery  ","1900-05-31T02:00:00","5 months","Physical examination, Tumour Markers"]
[6,"Non-seminoma testicular cancer  (lympho-vascular invasion)\nWITHOUT Adjuvant chemotherapy after surgery  ","1900-06-30T12:00:00","6 months","Physical examination, Tumour Markers, Testosterone Level"]
[8,"Non-seminoma testicular cancer  (lympho-vascular invasion)\nWITHOUT Adjuvant chemotherapy after surgery  ","1900-08-30T08:00:00","8 months","Physical examination, Tumour Markers, CT abdomen and pelvis, \nChest x-ray\n"]
[10,"Non-seminoma testicular cancer  (lympho-vascular invasion)\nWITHOUT Adjuvant chemotherapy after surgery  ","1900-10-30T04:00:00","10 months","Physical examination, Tumour Markers"]
[12,"Non-seminoma testicular cancer  (lympho-vascular invasion)\nWITHOUT Adjuvant chemotherapy after surgery  ","1900-12-30","1 year","Physical examination, Tumour Markers, CT abdomen and pelvis, \nChest x-ray\n"]
[15,"Non-seminoma testicular cancer  (lympho-vascular invasion)\nWITHOUT Adjuvant chemotherapy after surgery  ","1901-03-31T06:00:00","1 year, 3 months","Physical examination, Tumour Markers"]
[18,"Non-seminoma testicular cancer  (lympho-vascular invasion)\nWITHOUT Adjuvant chemotherapy after surgery  ","1901-06-30T12:00:00","1 year, 6 months","Physical examination, Tumour Markers, CT abdomen and pelvis, \nChest x-ray\n"]
[21,"Non-seminoma testicular cancer  (lympho-vascular invasion)\nWITHOUT Adjuvant chemotherapy after surgery  ","1901-09-29T18:00:00","1 year, 9 months","Physical examination, Tumour Markers"]
[24,"Non-seminoma testicular cancer  (lympho-vascular invasion)\nWITHOUT Adjuvant chemotherapy after surgery  ","1901-12-30","2 years","Physical examination, Tumour Markers, CT abdomen and pelvis, Chest x-ray, Testosterone Level"]
[30,"Non-seminoma testicular cancer  (lympho-vascular invasion)\nWITHOUT Adjuvant chemotherapy after surgery  ","1902-06-30T12:00:00","2 years, 6 months","Physical examination, Tumour Markers"]
[36,"Non-seminoma testicular cancer  (lympho-vascular invasion)\nWITHOUT Adjuvant chemotherapy after surgery  ","1902-12-30","3 years","Physical examination, Tumour Markers, CT abdomen and pelvis, Chest x-ray"]
[42,"Non-seminoma testicular cancer  (lympho-vascular invasion)\nWITHOUT Adjuvant chemotherapy after surgery  ","1903-06-30T12:00:00","3 years, 6 months","Physical examination, Tumour Markers"]
[48,"Non-seminoma testicular cancer  (lympho-vascular invasion)\nWITHOUT Adjuvant chemotherapy after surgery  ","1903-12-30","4 years","Physical examination, Tumour Markers"]
[60,"Non-seminoma testicular cancer  (lympho-vascular invasion)\nWITHOUT Adjuvant chemotherapy after surgery  ","1904-12-29","5 years","Physical examination, Tumour Markers, CT abdomen and pelvis, Chest x-ray, Testosterone Level"]
[null,"Non-seminoma testicular cancer  (lympho-vascular invasion)\nWITHOUT Adjuvant chemotherapy after surgery  ",{"$f":"$D$6+((365/12)*A78)","v":"00:00:00"},"After 5 years","Some doctors recommend follow-up beyond 5 years, please discuss this with your doctor. You should have a further testosterone test 10 years after your diagnosis."]
[3,"Metastatic Seminoma - IGCCCG Good/Intermediate Risk FOLLOWING chemotherapy +/- surgery",{"$f":"$D$6+((365/12)*A79)","v":"1900-03-31T06:00:00"},"3 months","Physical examination, Tumour Markers, Other Bloods (FBC, UEC, LFT, Mg)"]
[6,"Metastatic Seminoma - IGCCCG Good/Intermediate Risk FOLLOWING chemotherapy +/- surgery",{"$f":"$D$6+((365/12)*A80)","v":"1900-06-30T12:00:00"},"6 months","Physical examination, Tumour Markers, CT chest, abdomen and pelvis, Other Bloods (FBC, UEC, LFT, Mg)"]
[9,"Metastatic Seminoma - IGCCCG Good/Intermediate Risk FOLLOWING chemotherapy +/- surgery","1900-09-29T18:00:00","9 months","Physical examination, Tumour Markers"]
[12,"Metastatic Seminoma - IGCCCG Good/Intermediate Risk FOLLOWING chemotherapy +/- surgery","1900-12-30","12 months","Physical examination, Tumour Markers, CT chest, abdomen and pelvis, Testosterone Assessment, Lipids and Other Bloods (FBC, UEC, LFT, Mg)"]
[18,"Metastatic Seminoma - IGCCCG Good/Intermediate Risk FOLLOWING chemotherapy +/- surgery","1901-06-30T12:00:00","1 year, 6 months","Physical examination, Tumour Markers"]
[24,"Metastatic Seminoma - IGCCCG Good/Intermediate Risk FOLLOWING chemotherapy +/- surgery","1901-12-30","2 years","Physical examination, Tumour Markers, CT chest, abdomen and pelvis, Testosterone Assessment, Lipids and Other Bloods (FBC, UEC, LFT, Mg)"]
[36,"Metastatic Seminoma - IGCCCG Good/Intermediate Risk FOLLOWING chemotherapy +/- surgery","1902-12-30","3 years","Physical examination, Tumour Markers, CT chest, abdomen and pelvis, Other Bloods (FBC, UEC, LFT, Mg)"]
[48,"Metastatic Seminoma - IGCCCG Good/Intermediate Risk FOLLOWING chemotherapy +/- surgery","1903-12-30","4 years","Physical examination, Tumour Markers, Other Bloods (FBC, UEC, LFT, Mg)"]
[60,"Metastatic Seminoma - IGCCCG Good/Intermediate Risk FOLLOWING chemotherapy +/- surgery","1904-12-29","5 years","Physical examination, Tumour Markers, CT chest, abdomen and pelvis, Testosterone Assessment, Lipids and Other Bloods (FBC, UEC, LFT, Mg)"]
[null,"Metastatic Seminoma - IGCCCG Good/Intermediate Risk FOLLOWING chemotherapy +/- surgery","00:00:00","After 5 years","Some doctors recommend follow-up beyond 5 years, please discuss this with your doctor. You should have a further testosterone test 10 years after your diagnosis."]
[3,"Metastatic Non-Seminoma - IGCCCG Good/Intermediate Risk FOLLOWING chemotherapy +/- surgery","1900-03-31T06:00:00","3 months","Physical examination, Tumour Markers, Other Bloods (FBC, UEC, LFT, Mg)"]
[6,"Metastatic Non-Seminoma - IGCCCG Good/Intermediate Risk FOLLOWING chemotherapy +/- surgery","1900-06-30T12:00:00","6 months","Physical examination, Tumour Markers, CT chest, abdomen and pelvis, Other Bloods (FBC, UEC, LFT, Mg)"]
[9,"Metastatic Non-Seminoma - IGCCCG Good/Intermediate Risk FOLLOWING chemotherapy +/- surgery","1900-09-29T18:00:00","9 months","Physical examination, Tumour Markers"]
[12,"Metastatic Non-Seminoma - IGCCCG Good/Intermediate Risk FOLLOWING chemotherapy +/- surgery","1900-12-30","12 months","Physical examination, Tumour Markers, CT chest, abdomen and pelvis, Testosterone Assessment, Lipids and Other Bloods (FBC, UEC, LFT, Mg)"]
[15,"Metastatic Non-Seminoma - IGCCCG Good/Intermediate Risk FOLLOWING chemotherapy +/- surgery","1901-03-31T06:00:00","1 year, 3 months","Physical examination, Tumour Markers"]
[18,"Metastatic Non-Seminoma - IGCCCG Good/Intermediate Risk FOLLOWING chemotherapy +/- surgery","1901-06-30T12:00:00","1 year, 6 months","Physical examination, Tumour Markers, CT chest, abdomen and pelvis"]
[24,"Metastatic Non-Seminoma - IGCCCG Good/Intermediate Risk FOLLOWING chemotherapy +/- surgery","1901-12-30","2 years","Physical examination, Tumour Markers, CT chest, abdomen and pelvis, Testosterone Assessment, Lipids and Other Bloods (FBC, UEC, LFT, Mg)"]
[30,"Metastatic Non-Seminoma - IGCCCG Good/Intermediate Risk FOLLOWING chemotherapy +/- surgery","1902-06-30T12:00:00","2 years, 6 months","Physical examination, Tumour Markers"]
[36,"Metastatic Non-Seminoma - IGCCCG Good/Intermediate Risk FOLLOWING chemotherapy +/- surgery","1902-12-30","3 years","Physical examination, Tumour Markers, CT chest, abdomen and pelvis, Other Bloods (FBC, UEC, LFT, Mg)"]
[48,"Metastatic Non-Seminoma - IGCCCG Good/Intermediate Risk FOLLOWING chemotherapy +/- surgery","1903-12-30","4 years","Physical examination, Tumour Markers, Other Bloods (FBC, UEC, LFT, Mg)"]
[60,"Metastatic Non-Seminoma - IGCCCG Good/Intermediate Risk FOLLOWING chemotherapy +/- surgery","1904-12-29","5 years","Physical examination, Tumour Markers, CT chest, abdomen and pelvis, Testosterone Assessment, Lipids and Other Bloods (FBC, UEC, LFT, Mg)"]
[null,"Metastatic Non-Seminoma - IGCCCG Good/Intermediate Risk FOLLOWING chemotherapy +/- surgery","00:00:00",null,"Some doctors recommend follow-up beyond 5 years, please discuss this with your doctor. You should have a further testosterone test 10 years after your diagnosis."]
[null,"Metastatic Non-Seminoma - IGCCCG Poor Risk",{"$f":"$D$6+((365/12)*A101)","v":"00:00:00"},null,"Consult high-volume centre"]